Cogmind - Beta 17 @@@ ROGUE MODE // 2026.07.21 @ 14:21:45 Player: puppuppit Result: Destroyed by D-53 Grenadier with Mini Grenade Launcher Performance ------------- Evolutions (0) 0 Regions Visited (4) 800 Robots Destroyed (75) 375 Value Destroyed (1433) 1433 Prototype IDs (2) 40 Alien Tech Used (0) 0 Bonus (0) 0 TOTAL SCORE: 2648 Bonus ------- None Cogmind --------- Core Integrity 0/250 Matter 255/300 Energy 100/100 System Corruption 0% Temperature Cool (0) Movement Rolling (140) Ox4 Location -9/Mines Parts ------- > --- POWER (1) -------- (None) > --- PROPULSION (2) --- Wheel > --- UTILITY (2) ------ High-capacity Storage Unit Hacking Suite > --- WEAPON (2) ------- Grenade Launcher > --- INVENTORY (20) --- Light Treads Heat Sink Medium Matter Pod (100) High-capacity Matter Pod (200) High-capacity Matter Pod (200) Experimental Sensor Array Improved Terrain Scanner Targeting Computer Targeting Computer Targeting Computer Core Shielding Weapon Shielding Weapon Shielding Weapon Shielding High-powered Tractor Beam Field Laser Field Laser Light Assault Rifle Hammer Peak State ------------ > --- POWER ------------ Ion Engine > --- PROPULSION ------- Light Treads Light Treads > --- UTILITY ---------- High-capacity Storage Unit Hacking Suite > --- WEAPON ----------- Field Laser Light Assault Rifle > --- INVENTORY -------- Reinforced Deuterium Engine Light Treads Heat Sink Medium Matter Pod Medium Matter Pod Medium Matter Pod Improved Terrain Scanner Targeting Computer Targeting Computer Targeting Computer Core Shielding Weapon Shielding Weapon Shielding Weapon Shielding High-powered Tractor Beam Small Laser Field Laser Grenade Launcher Rocket Launcher Hammer [Rating: 14] Favorites ----------- Power Ion Engine Engine Ion Engine Propulsion Light Treads Treads Light Treads Wheel Wheel Utility High-capacity Storage Unit Device Improved Terrain Scanner Storage High-capacity Storage Unit Hackware Hacking Suite Weapon Light Assault Rifle Energy Gun EM Pulse Gun Ballistic Gun Light Assault Rifle Launcher Grenade Launcher Build | -11 -10 -10 -10 -9 ------- Run | Yrd Mat Min Exi Min Slots Evolved . | . . . . . Power . | . . . . . Propulsion . | . . . . . Utility . | . . . . . Weapon . | . . . . . Parts Attached 28 | 7 10 2 . 9 Power 5 | 1 2 . . 2 Engine 5 | 1 2 . . 2 Core . | . . . . . Reactor . | . . . . . Propulsion 7 | 2 1 . . 4 Treads 4 | 2 1 . . 1 Leg . | . . . . . Wheel 3 | . . . . 3 Hover . | . . . . . Flight . | . . . . . Utility 6 | 2 4 . . . Device 2 | 1 1 . . . Storage 3 | 1 2 . . . Processor . | . . . . . Hackware 1 | . 1 . . . Protection . | . . . . . Artifact . | . . . . . Weapon 10 | 2 3 2 . 3 Energy Gun 4 | 1 2 1 . . Energy Cannon . | . . . . . Ballistic Gun 3 | 1 . 1 . 1 Ballistic Cannon . | . . . . . Launcher 3 | . 1 . . 2 Special Weapon . | . . . . . Impact Weapon . | . . . . . Slashing Weapon . | . . . . . Piercing Weapon . | . . . . . Special Melee Weapon . | . . . . . Unidentified Prototypes . | . . . . . Parts Lost 9 | . 3 . . 6 Power 1 | . . . . 1 Propulsion 4 | . 1 . . 3 Utility 1 | . 1 . . . Weapon 3 | . 1 . . 2 Highest Loss Streak 4 | . 1 . . 4 To Critical Strikes . | . . . . . Average Backups 16 | . 13 19 20 19 Power . | . . . . 1 Propulsion . | . 1 1 1 . Utility 9 | . 7 11 13 13 Weapon 5 | . 5 7 5 4 Tool/Special . | . . . . . Unused Backups 25 | . 2 3 3 17 Power 1 | . . . . 1 Propulsion . | . . . . . Utility 17 | . 1 1 2 13 Weapon 7 | . 1 2 1 3 Tool/Special . | . . . . . Average Slot Usage (%) 99 | . 98 100 100 99 Engine 13 | . 13 14 14 14 Treads 27 | . 27 28 28 23 Device 5 | . 11 . . . Storage 14 | . 14 14 14 14 Hackware 7 | . 2 14 14 14 Energy Gun 13 | . 13 14 14 10 Ballistic Gun 14 | . 13 13 14 16 Peak Build Rating 14 | 9 11 13 14 14 Average Rating 11 | 7 10 11 13 13 On Entrance 9 | . 9 11 13 14 Avg Prop Armor Cover (%) 14 | . . . . 14 Naked Turns . | . . . . . Heaviest Build 50 | 11 49 50 49 49 Greatest Support 40 | 40 40 40 40 40 Greatest Overweight (x) 15 | . 15 1 1 4 Average Overweight (x) 1 | . . 1 1 1 Largest Inventory Capacity 20 | 8 20 20 20 20 Average Capacity 19 | 7 19 20 20 20 Most Carried 20 | 2 20 20 20 20 Average Carried 16 | . 13 19 19 19 Final Capacity 20 | 8 20 20 20 20 Final Carried 20 | 2 20 20 20 19 Class Distribution -------------------- 71% | Mutant 28% | Scavenger-Mutant Dominant Class ---------------- Mutant | -10/Materials Scavenger-Mutant | -10/Mines Scavenger-Mutant | -10/Exiles Mutant | -9/Mines Resources | -11 -10 -10 -10 -9 ----------- Run | Yrd Mat Min Exi Min Matter Collected 1533 | 344 852 105 . 232 Remotely . | . . . . . Salvage Created 2342 | 183 1640 110 . 409 Parts 151 | 17 109 9 . 16 Haulers Intercepted 2 | . 2 . . . Recyclers Shooed 7 | . 4 . . 3 Parts Field Recycled . | . . . . . Retrieved Matter . | . . . . . Parts Self-Destructed . | . . . . . Prevented . | . . . . . Parts Restored . | . . . . . Kills | -11 -10 -10 -10 -9 ------- Run | Yrd Mat Min Exi Min Combat Hostiles Destroyed 50 | . 30 6 . 14 Guns 24 | . 20 1 . 3 AOE 26 | . 10 5 . 11 Classes Destroyed 11 | 3 7 . . 1 Worker 6 | 2 3 . . 1 Builder 3 | . 3 . . . Tunneler 5 | 4 . . . 1 Hauler 2 | . 2 . . . Recycler 11 | 1 5 1 . 4 Mechanic 1 | . 1 . . . Operator 3 | . 3 . . . Watcher 3 | . 3 . . . Swarmer 12 | . 3 6 . 3 Grunt 29 | . 27 . . 2 Assembled 9 | . . . . 9 Best Kill Streak 10 | 4 5 3 . 10 Combat Bots Only 9 | . 3 3 . 9 Max Kills in Single Turn 3 | 1 3 3 . 3 Gunslinging . | . . . . . Exploded 3 | . 2 3 . 3 Melee . | . . . . . Uniques/NPCs Destroyed . | . . . . . Combat | -11 -10 -10 -10 -9 -------- Run | Yrd Mat Min Exi Min Hostile Shots Fired 165 | . 109 17 . 39 Missed 52 | . 36 5 . 11 Hits 113 | . 73 12 . 28 Projectile 113 | . 73 12 . 28 AOE 9 | . . . . 9 Critical Strikes 1 | . . . . 1 Damage Taken 1601 | . 858 141 . 602 Core 264 | . 122 42 . 100 Absorbed by Shields . | . . . . . Regen/Repaired (Parts) 158 | . 158 . . . Core Remaining (%) 100 | 100 . . . . Volleys Fired 199 | 24 124 9 . 42 Largest 2 | 2 2 2 . 2 Hottest 83 | 60 70 83 . 83 Shots Fired 370 | 48 233 14 . 75 Gun 337 | 48 216 10 . 63 Cannon . | . . . . . Launcher 33 | . 17 4 . 12 Special . | . . . . . Kinetic 183 | 24 112 5 . 42 Thermal 106 | 24 56 5 . 21 Explosive 33 | . 17 4 . 12 Electromagnetic 48 | . 48 . . . Robot Hit Streak 14 | 6 14 6 . 8 Robot Miss Streak 3 | 2 3 1 . 3 Penetration Max . | . . . . . Secondary Targets 2 | . 1 . . 1 Max Gunslinging Chain 1 | . 1 . . 1 Shots Hit Robots 227 | 31 148 6 . 42 Core Hits 156 | 12 92 9 . 43 Critical Kills . | . . . . . Critical Parts Destroyed 1 | . 1 . . . Critical Strikes 6 | . 4 . . 2 Burn 4 | . 2 . . 2 Destroy 1 | . 1 . . . Corrupt 1 | . 1 . . . Melee Attacks . | . . . . . Impact . | . . . . . Slashing . | . . . . . Piercing . | . . . . . Sneak Attacks . | . . . . . Combat Hostiles . | . . . . . Follow-up Attacks . | . . . . . Damage Inflicted 4464 | 286 2607 343 . 1228 Guns 2364 | 286 1519 86 . 473 Cannons . | . . . . . Explosions 2100 | . 1088 257 . 755 Melee . | . . . . . Ramming . | . . . . . Kinetic 918 | 142 544 16 . 216 Thermal 987 | 144 516 70 . 257 Explosive 2053 | . 1041 257 . 755 Electromagnetic 506 | . 506 . . . Impact . | . . . . . Slashing . | . . . . . Piercing . | . . . . . Highest Corruption . | . . . . . Average Corruption . | . . . . . Corruption Purged . | . . . . . Corruption Blocked . | . . . . . Overload Shots . | . . . . . Overflow Damage 66 | . 40 . . 26 Projectiles . | . . . . . Explosions 66 | . 40 . . 26 Melee . | . . . . . Knockbacks . | . . . . . Impact . | . . . . . Kinetic . | . . . . . Secondary . | . . . . . Self-Inflicted Damage 38 | . 31 7 . . Shots 3 | . 1 2 . . Rammed . | . . . . . Targets Rammed . | . . . . . Kicked . | . . . . . Crushed . | . . . . . Highest Temperature 237 | 80 140 60 . 237 Average Temperature 46 | 32 33 24 . 101 Received Heat Transfer 576 | . 432 12 . 132 Siege Activations . | . . . . . Martial Activations . | . . . . . Shielding Activations . | . . . . . Robots Disrupted . | . . . . . Combat Hostiles . | . . . . . Robots Corrupted . | . . . . . Combat Hostiles . | . . . . . Parts Fried 1 | . 1 . . . Impact Corruptions . | . . . . . Robots Melted . | . . . . . Combat Hostiles . | . . . . . Parts Melted 3 | . . . . 3 Heat Transferred 2568 | 325 1355 185 . 703 Parts Sabotaged . | . . . . . Parts Stolen . | . . . . . Parts Stripped . | . . . . . Power Chain Reactions 1 | . 1 . . . Alert | -11 -10 -10 -10 -9 ------- Run | Yrd Mat Min Exi Min Maximum Alert Level 1 | . 1 1 . . Low Security (%) 92 | 100 87 97 . 100 Level 1 7 | . 12 2 . . Level 2 . | . . . . . Level 3 . | . . . . . Level 4 . | . . . . . Level 5 . | . . . . . High Security . | . . . . . Max Security . | . . . . . Peak Influence 323 | 10 323 213 . 100 Initial 124 | . 3 124 . . Average 92 | 2 126 63 . 30 Influence Increases 1458 | 35 978 174 . 271 Destroy 0b10 Robot/C 820 | . 600 120 . 100 Destroy 0b10 Robot/NC 170 | 35 100 5 . 30 Destroy Leader 170 | . 130 20 . 20 Successful Hack 22 | . 22 . . . Select Force Hacks 60 | . 60 . . . Disable Machine 60 | . 30 15 . 15 Destroy Structure 111 | . 36 14 . 61 Lose Combat Pursuer 45 | . . . . 45 Influence Decreases 1456 | 30 663 494 . 269 Entered New Map 198 | . 2 196 . . Time Decay 1169 | 30 631 298 . 210 Lost Part 49 | . 30 . . 19 Lost Ally 40 | . . . . 40 Squads Dispatched 10 | . 9 1 . . Investigation 7 | . 6 1 . . Extermination . | . . . . . Reinforcement 3 | . 3 . . . Assault . | . . . . . Garrison . | . . . . . Intercept . | . . . . . Searches Triggered . | . . . . . Construction Impeded . | . . . . . Haulers Reinforced . | . . . . . Active Scanning Responses . | . . . . . Cargo Convoy Interrupts . | . . . . . Stealth | -11 -10 -10 -10 -9 --------- Run | Yrd Mat Min Exi Min Distress Signals 4 | . 3 . . 1 Communications Jammed . | . . . . . Distress Signals . | . . . . . Times Spotted 70 | . 36 10 . 24 Peak Tracking Total 11 | . 4 3 . 11 Tactical Retreats 3 | . . . . 3 Traps | -11 -10 -10 -10 -9 ------- Run | Yrd Mat Min Exi Min Traps Triggered 7 | . 7 . . . Indirectly . | . . . . . Trap Hack Attempts . | . . . . . Triggered . | . . . . . Disarmed . | . . . . . Reprogrammed . | . . . . . Reused . | . . . . . Traps Extracted . | . . . . . Installed . | . . . . . Triggered . | . . . . . Machines | -11 -10 -10 -10 -9 ---------- Run | Yrd Mat Min Exi Min Machines Disabled 4 | . 2 1 . 1 Max in Single Turn 1 | . 1 1 . 1 Machines Repaired . | . . . . . Machines Dismantled . | . . . . . Machines Sabotaged . | . . . . . Overloaded Fab Kills . | . . . . . Hacking | -11 -10 -10 -10 -9 --------- Run | Yrd Mat Min Exi Min Machines Accessed 10 | . 8 1 1 . Terminals 5 | . 5 . . . Fabricators . | . . . . . Repair Stations 1 | . 1 . . . Recycling Units 2 | . 2 . . . Scanalyzers . | . . . . . Garrison Access . | . . . . . Total Hacks 29 | . 27 1 1 . Successful 20 | . 18 1 1 . Failed 9 | . 9 . . . Catastrophic . | . . . . . Database Lockouts . | . . . . . Manual 21 | . 21 . . . Terminals 20 | . 20 . . . Fabricators . | . . . . . Repair Stations 3 | . 3 . . . Recycling Units 4 | . 4 . . . Scanalyzers . | . . . . . Garrison Access . | . . . . . Terminal Hacks 4 | . 2 1 1 . Record 1 | . . . 1 . Robot Analysis 1 | . 1 . . . Prototype ID Bank 1 | . 1 . . . Open Door 1 | . . 1 . . Fabricator Hacks . | . . . . . Repair Station Hacks 2 | . 2 . . . Scan Component 1 | . 1 . . . Repair 1 | . 1 . . . Recycling Unit Hacks 2 | . 2 . . . Retrieve Components 2 | . 2 . . . Scanalyzer . | . . . . . Garrison Access Hacks . | . . . . . Unauthorized Hacks 12 | . 12 . . . Terminals 9 | . 9 . . . Botnet 4 | . 4 . . . Skim 5 | . 5 . . . Fabricators . | . . . . . Repair Stations 1 | . 1 . . . Patch 1 | . 1 . . . Recycling Units 2 | . 2 . . . Tunnel 2 | . 2 . . . Scanalyzers . | . . . . . Garrison Access . | . . . . . Data Cores Recovered . | . . . . . Used . | . . . . . Hacking Detections 6 | . 6 . . . Full Trace Events . | . . . . . Feedback Events . | . . . . . Feedback Blocked . | . . . . . Robot Schematics Acquired . | . . . . . Robots Built . | . . . . . Authchips . | . . . . . Time . | . . . . . Total Robot Build Rating . | . . . . . Part Schematics Acquired . | . . . . . Parts Built . | . . . . . Authchips . | . . . . . Time . | . . . . . Total Part Build Rating . | . . . . . Part Studies Acquired . | . . . . . Parts Repaired 1 | . 1 . . . Time 26 | . 26 . . . Parts Recycled . | . . . . . Recycled Matter . | . . . . . Retrieved Matter . | . . . . . Retrieved Components 19 | . 19 . . . Parts Scanalyzed . | . . . . . Part Schematics Acquired . | . . . . . Parts Damaged . | . . . . . Bothacking | -11 -10 -10 -10 -9 ------------ Run | Yrd Mat Min Exi Min Used RIF Installer . | . . . . . Robots Hacked . | . . . . . Non-combat . | . . . . . Combat . | . . . . . Robot Hacks Applied . | . . . . . Relay Couplers Released . | . . . . . Fabnet Peak Effective % . | . . . . . Robots Rewired . | . . . . . Allies Hacked . | . . . . . Hacks Repelled . | . . . . . Allies | -11 -10 -10 -10 -9 -------- Run | Yrd Mat Min Exi Min Total Allies 3 | . . . . 3 Largest Group 3 | . . . . 3 Highest-Rated Group 40 | . . . . 40 Highest-Rated Ally 16 | . . . . 16 Total Orders . | . . . . . Ally Attacks 21 | . . . . 21 Total Damage 183 | . . . . 183 Kills 4 | . . . . 4 Allies Corrupted . | . . . . . Allies Melted . | . . . . . Intel | -11 -10 -10 -10 -9 ------- Run | Yrd Mat Min Exi Min Active Infowar (turns) 2411 | 85 2326 . . . Terrain 2411 | 85 2326 . . . Robot Analysis Total 1 | . 1 . . . Derelict Logs Recovered 3 | . . 2 . 1 Drone Launches . | . . . . . Drone Recoveries . | . . . . . Exploration | -11 -10 -10 -10 -9 ------------- Run | Yrd Mat Min Exi Min Turns Passed 5585 | 176 2865 1181 616 747 Spaces Moved 2108 | 62 1030 477 257 282 Core 3 | 2 1 . . . Treads 2041 | 60 1029 477 257 218 Legs . | . . . . . Wheels 64 | . . . . 64 Hover . | . . . . . Flight . | . . . . . Fastest Speed 50 | 50 160 240 240 110 Average Speed 232 | 156 236 240 240 212 Slowest Speed 800 | 160 800 240 240 320 Overloaded Moves . | . . . . . Propulsion Burnouts . | . . . . . Robots Hopped . | . . . . . Potential Cave-ins . | . . . . . Cave-ins Triggered . | . . . . . Exploration Rate (%) 62 | 4 98 97 60 53 Regions Visited 4 Branch Regions 3 Pre-discovered Areas 5 | . 3 1 1 . Known Exits Taken 1 | . 1 . . . Unknown Exits Taken 3 | 1 . 1 1 . Scrap Searched 2 | . . 2 . . Spaces Dug . | . . . . . Terrain Destroyed 151 | . 41 19 . 91 Melee . | . . . . . Projectile . | . . . . . AOE 151 | . 41 19 . 91 Terrain Rammed . | . . . . . Walls Destroyed . | . . . . . Machines Disabled . | . . . . . Actions | -11 -10 -10 -10 -9 --------- Run | Yrd Mat Min Exi Min Total 2459 | 94 1238 505 262 360 Wait 41 | . 30 . . 11 Move 2104 | 61 1029 476 256 282 Hop . | . . . . . Pick Up 36 | 2 21 6 3 4 Fast Attach 19 | 7 10 . . 2 Attach 6 | . 4 . . 2 Detach 2 | . 2 . . . Swap 30 | . 14 6 . 10 Drop 22 | . 4 8 3 7 Fire 199 | 24 124 9 . 42 Melee . | . . . . . Ram . | . . . . . Kick . | . . . . . Crush . | . . . . . Escape Stasis . | . . . . . Rewire . | . . . . . Trap . | . . . . . Miscellaneous . | . . . . . Route ------- -11/Scrapyard -10/Materials (discovered 6 exits: *Mat x3 / *Min x2 / *Sub) -10/Mines (discovered 4 exits: *Mat x2 / *Exi / Sub) -10/Exiles (discovered 2 exits: [*Min x2]) -9/Mines (discovered 2 exits: *Mat x2) History --------- Turn | Location | Event 7 | -11/Scrapyard | Discovered new exit (range 16) 177 | -11/Scrapyard | Entered Materials 323 | -10/Materials | Build established: Mutant 506 | -10/Materials | Discovered new exit (range 16) 653 | -10/Materials | Discovered new exit (range 14) 1036 | -10/Materials | Discovered new exit (range 14) 1265 | -10/Materials | Discovered new exit (range 15) 2035 | -10/Materials | Identified exit to Subcaves 2035 | -10/Materials | Identified exit to Mines 2035 | -10/Materials | Learned location of 1 exit from Materials 2093 | -10/Materials | Learned location of 2 exits from Mines 2180 | -10/Materials | Learned Storage emergency access door positions 2231 | -10/Materials | Learned location of Mines (-9) 2249 | -10/Materials | Learned Storage trap positions 2276 | -10/Materials | Loaded intel: 15 trap records 2315 | -10/Materials | Learned Materials stockpile data 2544 | -10/Materials | Repaired Lgt. Treads 3042 | -10/Materials | Entered Mines 3043 | -10/Mines | Identified exit to Materials 3045 | -10/Mines | Core integrity fell below 50% 3366 | -10/Mines | Deemed a non-threat by the Exiles lab entrance 3369 | -10/Mines | Discovered new exit (range 5) 3544 | -10/Mines | Joined a pair of Derelicts in attacking an 0b10 outpost 3664 | -10/Mines | Received a Rocket Launcher from a helpful Derelict 3795 | -10/Mines | Met a Derelict shopkeep closing up shop 3929 | -10/Mines | Build established: Scavenger-Mutant 4223 | -10/Mines | Entered Exiles 4262 | -10/Exiles | Discovered new exit (range 15) 4285 | -10/Exiles | Met 8R-AWN 4323 | -10/Exiles | Met EX-HEX 4453 | -10/Exiles | Met EX-DEC 4492 | -10/Exiles | Learned location of Zion (-7) 4693 | -10/Exiles | Met EX-BIN 4811 | -10/Exiles | Discovered new exit (range 14) 4839 | -10/Exiles | Entered Mines 4845 | -9/Mines | Met a Derelict bent on vengeance 4885 | -9/Mines | Found a damaged Exp. Sensor Array with a note attached 4890 | -9/Mines | Found Prototype Device 4999 | -9/Mines | Identified exit to Materials 5169 | -9/Mines | Discovered exit to Materials (range 12) 5372 | -9/Mines | Build established: Mutant 5426 | -9/Mines | Assembled infested the area 5437 | -9/Mines | Assisted by bots powering up and referring to "LRC-V3" 5497 | -9/Mines | Destroyed 9 combat bots 5502 | -9/Mines | Lost 3 allies 5579 | -9/Mines | Core integrity fell below 20% 5586 | -9/Mines | Destroyed by D-53 Grenadier with Mini Grenade Launcher Last Messages --------------- 05501_ Dropped Lgt. Treads. 05502_ Acquired Wheel. 05503_ Dropped Lgt. Ion Engine. 05505_ Acquired Lgt. Treads. 05507_ Acquired 20 matter. 05518_ Acquired 2 matter. 05521_ Acquired 19 matter. 05531_ K-01 Serf destroyed. 05535_ Acquired 30 matter. 05537_ Dropped Wheel. 05552_ R-06 Scavenger destroyed. 05561_ Acquired 55 matter. 05577_ The unstable cave ceiling collapses. 05579_ Lgt. Assault Rifle destroyed. 05580_ Wheel destroyed. 05582_ The unstable cave ceiling collapses. 05583_ Rocket Launcher destroyed. 05584_ Ion Engine destroyed. 05584_ Destroyed Lgt. Deuterium Engine. 05585_ The unstable cave ceiling collapses. Map ----- +----------------------------------------------------+ | ?????# ### ##????????# ##### | | ?????# #???????# ## #????? | | ?????# ## #??????????????## #?????? | | ?????# ## #???????????????###??????? | | ?????# ## ##????????????????????????? | | ?????# ## ##?????????????????????????? | | ???### #######??????????????????????????? | | ??## #####????????????????????????????????? | | ??# ##????????????????????????????????????? | | ??# #?????????????????????????????????????? | | ??# ##?????????????????????????????????????? | | ?## ###??????????????????????????????????????? | | ?# ##???????##???????????????????????????????? | | ?# #????????# ####???????????????????????????? | | ?## ##???????#! * ###?????????????????????????? | | ??# ##??????##* #?????????????????????????? | | ??## ##??????## #?????????????????????????? | | ???# #???????## ##?????????????????????????? | | ???# #????##### ##??????###?????????????????? | | ???# ##????# # ######## ??????????????????? | | ???## ##?????# # # #?##???????????????? | | ????## #??????# # # # # #######?????????? | | ?????# #??????# = #?????????? | | ?????# ######## * #?????????? | | ?????# ! * =% ????????? | | ?????# = * @ d ????????? | | ?????########## # d ????????? | | ??????????????## ## ????????? | | ???????????????####### # ?????????? | | ?????????????????????## ###?????????? | | ??????????????????????###### ## ##???????????? | | ????????????????????????????####?? #????????????? | | ????????????????????????????????????#????????????? | | ?????????????????????????????????????????????????? | | ?????????????????????????????????????????????????? | | ?????????????????????????????????????????????????? | | ?????????????????????????????????????????????????? | | ?????????????????????????????????????????????????? | | ?????????????????????????????????????????????????? | | ?????????????????????????????????????????????????? | | ?????????????????????????????????????????????????? | | ?????????????????????????????????????????????????? | | ?????????????????????????????????????????????????? | | ?????????????????????????????????????????????????? | | ?????????????????????????????????????????????????? | | ?????????????????????????????????????????????????? | | ?????????????????????????????????????????????????? | | ?????????????????????????????????????????????????? | | ?????????????????????????????????????????????????? | | ?????????????????????????????????????????????????? | +----------------------------------------------------+ Best States ------------- Heat Dissipation 25 Energy Generation 10 Energy Capacity 250 Matter Stores 300 Matter Capacity 300 Sight Range 16 Terrain Scan Range 16 Terrain Scan Density 10 Evasion (%) 40 Recoil Reduction 2 Offensive Hacking 10 Item Schematics ----------------- None Robot Schematics ------------------ None Fabricated ------------ Nothing Repaired ---------- Lgt. Treads | 5% | -10/Materials Studied --------- None Alien Tech Used ----------------- None Achievements -------------- None Challenges ------------ None Game ------ Seed ProjectionMatterGriptreads Manual? 0 Play Time 00:17:47 Cumulative 725.7 hours Start 2026.07.21 @ 14:04:18 End 2026.07.21 @ 14:21:45 Sessions 1 Manual Loads 0 Difficulty Rogue Special Mode None Game No. 355 Rogue 355 Adventurer 0 Explorer 0 Win Type - Total 7 Types 3/0/2/1/0/0/0/0/0/1 Lore% 87 Gallery% 76 Achievement% 60 Wizard Run 0 Options --------- Layout 2 ASCII 0 Keyboard 1 Movement Vi Keybinds 0 Fullscreen 1 Font 16/Proggy Map View 55x47 Zoom Use 0% Tactical HUD 1 Map Filters NONE Filters NONE Steam 0 RUN: 9b9a9af3-031b-4df5-b093-6f03ae5f9515